Cogmind - Beta 17 --- EXPLORER MODE // 2026.07.22 @ 22:04:35 Player: Goose Result: Destroyed by G-47 Trooper with Particle Gun Performance ------------- Evolutions (0) 0 Regions Visited (4) 800 Robots Destroyed (94) 470 Value Destroyed (1964) 1964 Prototype IDs (28) 560 Alien Tech Used (0) 0 Bonus (78) 78 TOTAL SCORE: 3872 Bonus ------- Follower Combat Kills 78 Cogmind --------- Core Integrity 0/250 Matter 294/300 Energy 128/160 System Corruption 1% Temperature Cool (9) Movement Treading (160) Location -8/Recycling Parts ------- > --- POWER (1) -------- Light Nuclear Core (fused) > --- PROPULSION (2) --- Spiked Medium Treads (fused) Spiked Medium Treads (fused) > --- UTILITY (3) ------ Medium Storage Unit Light Regenerative Plating (fused) Self-contained Transmogrifier > --- WEAPON (2) ------- Lightning Gun (fused) Mini Assault Cannon (fused) > --- INVENTORY (10) --- Subdweller Power Source Light Treads Arachnoskeleton Subdweller Laser Mini Grenade Launcher Mining Laser Multitool Makeshift Hammer Peak State ------------ > --- POWER ------------ Light Nuclear Core > --- PROPULSION ------- Improved Medium Treads Spiked Medium Treads > --- UTILITY ---------- Medium Storage Unit Light Regenerative Plating Self-contained Transmogrifier > --- WEAPON ----------- Lightning Gun Mini Assault Cannon > --- INVENTORY -------- Subdweller Power Source Light Treads Arachnoskeleton Subdweller Laser Mini Grenade Launcher Mining Laser Multitool Makeshift Hammer [Rating: 41] Favorites ----------- Power Ion Engine Engine Ion Engine Power Core Nuclear Core Propulsion Light Treads Treads Light Treads Flight Unit Flight Unit Utility Medium Storage Unit Device Self-contained Transmogrifier Storage Medium Storage Unit Processor Improved Targeting Computer Protection Power Shielding Weapon Flail Energy Gun Precision Beam Rifle Ballistic Cannon Mini Assault Cannon Launcher Mini Grenade Launcher Special Weapon Mining Laser Impact Weapon Flail Special Melee Weapon Datajack Build | -11 -10 -10 -10 -8 ------- Run | Yrd Mat Min Sub Rec Slots Evolved 1 | . 1 . . . Power . | . . . . . Propulsion . | . . . . . Utility 1 | . 1 . . . Weapon . | . . . . . Parts Attached 27 | 8 10 6 3 . Power 6 | 1 2 2 1 . Engine 6 | 1 2 2 1 . Core . | . . . . . Reactor . | . . . . . Propulsion 3 | 2 . 1 . . Treads 3 | 2 . 1 . . Leg . | . . . . . Wheel . | . . . . . Hover . | . . . . . Flight . | . . . . . Utility 9 | 3 4 . 2 . Device 4 | 1 2 . 1 . Storage 1 | 1 . . . . Processor 1 | . 1 . . . Hackware . | . . . . . Protection 3 | 1 1 . 1 . Artifact . | . . . . . Weapon 9 | 2 4 3 . . Energy Gun 2 | 1 1 . . . Energy Cannon . | . . . . . Ballistic Gun . | . . . . . Ballistic Cannon 1 | . . 1 . . Launcher 3 | . 2 1 . . Special Weapon 2 | 1 1 . . . Impact Weapon . | . . . . . Slashing Weapon . | . . . . . Piercing Weapon . | . . . . . Special Melee Weapon 1 | . . 1 . . Unidentified Prototypes 1 | . . . 1 . Parts Lost 3 | . 2 . 1 . Power 1 | . . . 1 . Propulsion . | . . . . . Utility 1 | . 1 . . . Weapon 1 | . 1 . . . Highest Loss Streak 1 | . 1 . 1 . To Critical Strikes . | . . . . . Average Backups 9 | 8 9 10 9 8 Power 1 | 1 2 2 1 1 Propulsion . | . . . 1 2 Utility 2 | 4 4 1 1 . Weapon 4 | 1 2 4 4 4 Tool/Special . | . . . . . Unused Backups 28 | 5 8 4 6 5 Power 8 | 2 1 2 2 1 Propulsion 3 | 2 . . . 1 Utility 7 | 1 5 . 1 . Weapon 8 | . 2 1 3 2 Tool/Special 2 | . . 1 . 1 Average Slot Usage (%) 99 | . 97 100 99 100 Engine 8 | . 12 12 7 . Core 3 | . . . 4 12 Treads 24 | . 24 25 24 25 Device 16 | . 6 9 19 12 Storage 12 | . 12 12 12 12 Processor 3 | . 4 12 1 . Protection 4 | . 12 2 2 12 Energy Gun 11 | . 12 10 11 12 Ballistic Cannon 1 | . . . 2 12 Launcher 2 | . 9 7 . . Special Weapon 1 | . 1 4 1 . Impact Weapon 6 | . . . 8 . Peak Build Rating 41 | 10 13 16 41 41 Average Rating 24 | 7 10 12 31 41 On Entrance 14 | . 10 11 12 41 Avg Prop Armor Cover (%) . | . . . . . Naked Turns . | . . . . . Heaviest Build 32 | 18 22 24 32 27 Greatest Support 58 | 40 40 40 58 56 Greatest Overweight (x) 3 | 3 . . . . Average Overweight (x) . | . . . . . Largest Inventory Capacity 10 | 10 10 10 10 10 Average Capacity 9 | 9 10 10 10 10 Most Carried 10 | 10 10 10 10 10 Average Carried 9 | 8 9 9 9 10 Final Capacity 10 | 10 10 10 10 10 Final Carried 10 | 10 10 10 10 10 Transmogrified Parts 60 | . . . 60 . Integrity Recovered 1061 | . . . 1061 . Class Distribution -------------------- 99% | Hacker-Mutant Dominant Class ---------------- Hacker-Mutant | -10/Materials Hacker-Mutant | -10/Mines Hacker-Mutant | -10/Subcaves Hacker-Mutant | -8/Recycling Resources | -11 -10 -10 -10 -8 ----------- Run | Yrd Mat Min Sub Rec Matter Collected 1465 | 380 516 306 263 . Remotely . | . . . . . Salvage Created 2515 | 233 1237 166 879 . Parts 161 | 22 91 10 38 . Haulers Intercepted 2 | . 2 . . . Recyclers Shooed 2 | 1 1 . . . Parts Field Recycled . | . . . . . Retrieved Matter . | . . . . . Parts Self-Destructed . | . . . . . Prevented . | . . . . . Parts Restored . | . . . . . Kills | -11 -10 -10 -10 -8 ------- Run | Yrd Mat Min Sub Rec Combat Hostiles Destroyed 59 | . 24 12 23 . Melee 4 | . . . 4 . Guns 17 | . 7 2 8 . Cannons 7 | . 1 4 2 . AOE 22 | . 16 6 . . Classes Destroyed 13 | 3 5 1 4 . Worker 18 | 4 12 2 . . Builder 8 | . 7 1 . . Tunneler 9 | 5 2 2 . . Hauler 2 | . 2 . . . Recycler 3 | 1 2 . . . Turret 2 | . . . 2 . Watcher 3 | . 3 . . . Swarmer 7 | . 2 . 5 . Grunt 24 | . 22 2 . . Sentry 1 | . . . 1 . Artisan 1 | . . . 1 . Subdweller 17 | . . . 17 . Assembled 10 | . . 10 . . Best Kill Streak 8 | 2 8 7 4 . Combat Bots Only 5 | . 5 5 4 . Max Kills in Single Turn 3 | 1 3 3 1 . Gunslinging . | . . . . . Exploded 3 | . 3 3 . . Melee 1 | . . . 1 . Uniques/NPCs Destroyed . | . . . . . Combat | -11 -10 -10 -10 -8 -------- Run | Yrd Mat Min Sub Rec Hostile Shots Fired 258 | . 52 26 179 1 Missed 81 | . 12 6 63 . Hits 177 | . 40 20 116 1 Projectile 177 | . 40 20 116 1 AOE 1 | . . 1 . . Critical Strikes 3 | . 1 . 2 . Damage Taken 2160 | . 529 212 1408 11 Core 252 | . 81 17 143 11 Absorbed by Shields . | . . . . . Redirected to Shielding 12 | . 4 3 5 . Ignored by Resistances 1265 | . 325 130 803 7 Regen/Repaired (Parts) 223 | . 191 . 32 . Core Remaining (%) 100 | 100 . . . . Volleys Fired 232 | 30 91 30 80 1 Largest 2 | 2 2 2 2 2 Hottest 200 | 150 150 150 200 95 Shots Fired 344 | 34 142 38 128 2 Gun 239 | 30 101 16 91 1 Cannon 29 | . . 13 15 1 Launcher 48 | . 37 8 3 . Special 28 | 4 4 1 19 . Kinetic 29 | . . 13 15 1 Thermal 169 | 34 33 17 85 . Explosive 48 | . 37 8 3 . Electromagnetic 98 | . 72 . 25 1 Robot Hit Streak 29 | 13 29 26 13 8 Robot Miss Streak 4 | 1 4 2 2 . Penetration Max . | . . . . . Secondary Targets . | . . . . . Shots Hit Robots 243 | 28 98 29 86 2 Core Hits 125 | 11 67 22 25 . Critical Kills 2 | . . 1 1 . Critical Parts Destroyed 7 | . . 2 5 . Critical Strikes 19 | 2 4 3 10 . Burn 7 | 2 3 . 2 . Destroy 3 | . . 3 . . Blast 1 | . . . 1 . Corrupt 1 | . 1 . . . Smash 7 | . . . 7 . Melee Attacks 281 | . . 1 280 . Impact 278 | . . . 278 . Slashing . | . . . . . Piercing . | . . . . . Sneak Attacks 5 | . . 1 4 . Combat Hostiles 2 | . . . 2 . Follow-up Attacks 4 | . . . 4 . Damage Inflicted 6652 | 336 3026 1009 2230 51 Guns 1944 | 312 871 126 615 20 Cannons 492 | . . 251 210 31 Explosions 2742 | . 2107 608 27 . Melee 1378 | . . . 1378 . Ramming . | . . . . . Kinetic 492 | . . 251 210 31 Thermal 1290 | 336 392 150 412 . Explosive 2683 | . 2048 608 27 . Electromagnetic 809 | . 586 . 203 20 Impact 1378 | . . . 1378 . Slashing . | . . . . . Piercing . | . . . . . Highest Corruption 1 | . 1 1 1 1 Average Corruption 1 | . 1 1 1 1 Corruption Purged . | . . . . . Corruption Blocked . | . . . . . Effects 62 | . 8 8 46 . Message Errors 25 | . 2 3 20 . Matter Fused 10 | . 2 2 6 . Heat Flow Errors 8 | . 2 1 5 . Energy Discharges 11 | . 2 . 9 . Data Loss (minor) 3 | . . . 3 . Misfires 1 | . . . 1 . Alerts 3 | . . 1 2 . Weapon Failures 1 | . . 1 . . Overload Shots . | . . . . . Overflow Damage 436 | . 52 51 330 3 Projectiles 15 | . . 8 4 3 Explosions 95 | . 52 43 . . Melee 326 | . . . 326 . Knockbacks 14 | . . . 14 . Impact 11 | . . . 11 . Kinetic 3 | . . . 3 . Secondary . | . . . . . Self-Inflicted Damage 261 | . 248 13 . . Shots 14 | . 13 1 . . Rammed . | . . . . . Targets Rammed . | . . . . . Kicked . | . . . . . Crushed . | . . . . . Highest Temperature 245 | 114 236 90 245 . Average Temperature 46 | 38 52 20 55 . Received Heat Transfer 615 | . 252 30 324 9 Siege Activations . | . . . . . Martial Activations . | . . . . . Shielding Activations . | . . . . . Robots Disrupted . | . . . . . Combat Hostiles . | . . . . . Robots Corrupted 9 | . . . 9 . Combat Hostiles 9 | . . . 9 . Parts Fried 9 | . 2 . 7 . Impact Corruptions 14 | . . . 14 . Robots Melted . | . . . . . Combat Hostiles . | . . . . . Parts Melted 6 | . 1 . 5 . Heat Transferred 3678 | 1123 1173 420 962 . Parts Sabotaged . | . . . . . Parts Stolen . | . . . . . Parts Stripped . | . . . . . Power Chain Reactions 2 | . 2 . . . Alert | -11 -10 -10 -10 -8 ------- Run | Yrd Mat Min Sub Rec Maximum Alert Level 1 | . 1 . . . Low Security (%) 75 | 100 53 100 . 100 Level 1 24 | . 46 . . . Level 2 . | . . . . . Level 3 . | . . . . . Level 4 . | . . . . . Level 5 . | . . . . . High Security . | . . . . . Max Security . | . . . . . Peak Influence 379 | 10 379 60 . 94 Initial 94 | . . 4 . 94 Average 90 | . 169 3 . 94 Influence Increases 1731 | 50 1126 170 385 . Destroy 0b10 Robot/C 720 | . 480 80 160 . Destroy 0b10 Robot/NC 215 | 50 140 25 . . Destroy Leader 140 | . 120 20 . . Allied During Kill 2 | . . 2 . . Trap Triggered on 0b10 20 | . 20 . . . Successful Hack 7 | . 7 . . . Select Force Hacks 60 | . 60 . . . Disable Machine 20 | . 20 . . . Destroy Structure 322 | . 279 43 . . Lose Combat Pursuer 225 | . . . 225 . Influence Decreases 1637 | 50 1111 185 115 176 Entered New Map 187 | . . 11 . 176 Time Decay 1391 | 50 1091 135 115 . Lost Part 20 | . 20 . . . Lost Ally 39 | . . 39 . . Squads Dispatched 7 | . 7 . . . Investigation 7 | . 7 . . . Extermination . | . . . . . Reinforcement . | . . . . . Assault . | . . . . . Garrison . | . . . . . Intercept . | . . . . . Searches Triggered . | . . . . . Construction Impeded . | . . . . . Haulers Reinforced . | . . . . . Active Scanning Responses . | . . . . . Cargo Convoy Interrupts . | . . . . . Stealth | -11 -10 -10 -10 -8 --------- Run | Yrd Mat Min Sub Rec Distress Signals 1 | . 1 . . . Communications Jammed . | . . . . . Distress Signals . | . . . . . Times Spotted 87 | . 30 20 34 3 Peak Tracking Total 10 | . 3 10 4 3 Tactical Retreats 5 | . . 1 4 . Traps | -11 -10 -10 -10 -8 ------- Run | Yrd Mat Min Sub Rec Traps Triggered 6 | . 2 . 4 . Indirectly . | . . . . . Trap Hack Attempts . | . . . . . Triggered . | . . . . . Disarmed . | . . . . . Reprogrammed 3 | . 3 . . . Reused 2 | . 2 . . . Traps Extracted . | . . . . . Installed . | . . . . . Triggered 2 | . 2 . . . Machines | -11 -10 -10 -10 -8 ---------- Run | Yrd Mat Min Sub Rec Machines Disabled 13 | . 5 . 8 . Max in Single Turn 3 | . 3 . 1 . Machines Repaired . | . . . . . Machines Dismantled . | . . . . . Machines Sabotaged . | . . . . . Overloaded Fab Kills . | . . . . . Hacking | -11 -10 -10 -10 -8 --------- Run | Yrd Mat Min Sub Rec Machines Accessed 12 | . 10 . 2 . Terminals 7 | . 7 . . . Fabricators . | . . . . . Repair Stations 1 | . 1 . . . Recycling Units 2 | . 2 . . . Scanalyzers . | . . . . . Garrison Access . | . . . . . Total Hacks 58 | . 44 . 14 . Successful 45 | . 31 . 14 . Failed 13 | . 13 . . . Catastrophic 2 | . 2 . . . Database Lockouts . | . . . . . Manual 35 | . 34 . 1 . Terminals 34 | . 34 . . . Fabricators . | . . . . . Repair Stations 4 | . 4 . . . Recycling Units 6 | . 6 . . . Scanalyzers . | . . . . . Garrison Access . | . . . . . Terminal Hacks 25 | . 11 . 14 . Record 18 | . 5 . 13 . Branch Access Points 1 | . 1 . . . Emergency Access Points 1 | . 1 . . . Alert Level 1 | . 1 . . . Reprogram Traps 1 | . 1 . . . Zone Layout 2 | . 2 . . . Proto ID Catalog 1 | . . . 1 . Fabricator Hacks . | . . . . . Repair Station Hacks 4 | . 4 . . . Scan Component 2 | . 2 . . . Repair 2 | . 2 . . . Recycling Unit Hacks . | . . . . . Scanalyzer . | . . . . . Garrison Access Hacks . | . . . . . Unauthorized Hacks 14 | . 14 . . . Terminals 10 | . 10 . . . Track 4 | . 4 . . . Assimilate 1 | . 1 . . . Botnet 4 | . 4 . . . Disrupt 1 | . 1 . . . Fabricators . | . . . . . Repair Stations . | . . . . . Recycling Units 4 | . 4 . . . Recyclers 1 | . 1 . . . Mask 1 | . 1 . . . Tunnel 2 | . 2 . . . Scanalyzers . | . . . . . Garrison Access . | . . . . . Data Cores Recovered . | . . . . . Used . | . . . . . Hacking Detections 8 | . 8 . . . Full Trace Events 5 | . 5 . . . Feedback Events . | . . . . . Feedback Blocked . | . . . . . Robot Schematics Acquired . | . . . . . Robots Built . | . . . . . Authchips . | . . . . . Time . | . . . . . Total Robot Build Rating . | . . . . . Part Schematics Acquired . | . . . . . Parts Built . | . . . . . Authchips . | . . . . . Time . | . . . . . Total Part Build Rating . | . . . . . Part Studies Acquired . | . . . . . Parts Repaired 2 | . 2 . . . Time 52 | . 52 . . . Parts Recycled . | . . . . . Recycled Matter . | . . . . . Retrieved Matter . | . . . . . Retrieved Components . | . . . . . Parts Scanalyzed . | . . . . . Part Schematics Acquired . | . . . . . Parts Damaged . | . . . . . Bothacking | -11 -10 -10 -10 -8 ------------ Run | Yrd Mat Min Sub Rec Used RIF Installer . | . . . . . Robots Hacked 3 | . . 1 2 . Non-combat 2 | . . . 2 . Combat 1 | . . 1 . . Robot Hacks Applied 3 | . . 1 2 . parse_system 3 | . . 1 2 . Relay Couplers Released . | . . . . . Fabnet Peak Effective % . | . . . . . Robots Rewired . | . . . . . Allies Hacked . | . . . . . Hacks Repelled . | . . . . . Allies | -11 -10 -10 -10 -8 -------- Run | Yrd Mat Min Sub Rec Total Allies 3 | . . 3 . . Largest Group 3 | . . 3 . . Highest-Rated Group 40 | . . 40 . . Highest-Rated Ally 16 | . . 16 . . Total Orders . | . . . . . Ally Attacks 41 | . . 41 . . Total Damage 291 | . . 291 . . Kills 5 | . . 5 . . Allies Corrupted . | . . . . . Allies Melted . | . . . . . Intel | -11 -10 -10 -10 -8 ------- Run | Yrd Mat Min Sub Rec Active Infowar (turns) 3101 | 254 544 906 1397 . Optics 150 | . . . 150 . IFF 680 | . . . 680 . Terrain 2099 | 254 412 866 567 . Structural 305 | . 265 40 . . Robot Analysis Total . | . . . . . Derelict Logs Recovered 3 | . . 2 1 . Drone Launches . | . . . . . Drone Recoveries . | . . . . . Exploration | -11 -10 -10 -10 -8 ------------- Run | Yrd Mat Min Sub Rec Turns Passed 9877 | 426 1694 1099 6642 16 Spaces Moved 4924 | 205 836 619 3255 9 Core 2 | 2 . . . . Treads 4922 | 203 836 619 3255 9 Legs . | . . . . . Wheels . | . . . . . Hover . | . . . . . Flight . | . . . . . Fastest Speed 50 | 50 160 160 157 160 Average Speed 161 | 159 160 160 162 160 Slowest Speed 200 | 200 160 160 170 160 Overloaded Moves . | . . . . . Propulsion Burnouts . | . . . . . Robots Hopped . | . . . . . Potential Cave-ins . | . . . . . Cave-ins Triggered . | . . . . . Exploration Rate (%) 60 | 7 97 98 94 4 Regions Visited 4 Branch Regions 3 Pre-discovered Areas 3 | . 2 . 1 . Known Exits Taken 4 | 1 1 1 1 . Unknown Exits Taken . | . . . . . Scrap Searched 7 | . . 1 6 . Spaces Dug 9 | . . . 9 . Terrain Destroyed 388 | . 307 56 25 . Melee 9 | . . . 9 . Projectile 7 | . . 4 3 . AOE 372 | . 307 52 13 . Terrain Rammed . | . . . . . Walls Destroyed . | . . . . . Machines Disabled . | . . . . . Actions | -11 -10 -10 -10 -8 --------- Run | Yrd Mat Min Sub Rec Total 6012 | 264 1045 688 4004 11 Wait 455 | . 77 14 364 . Move 4920 | 204 835 618 3254 9 Hop . | . . . . . Pick Up 46 | 17 13 5 11 . Fast Attach 10 | 5 3 . 2 . Attach 8 | 2 3 . 3 . Detach 3 | . 1 . 2 . Swap 26 | 1 9 12 4 . Drop 37 | 5 13 8 11 . Fire 232 | 30 91 30 80 1 Melee 274 | . . 1 273 . Ram . | . . . . . Kick . | . . . . . Crush . | . . . . . Escape Stasis . | . . . . . Rewire 1 | . . . . 1 Trap . | . . . . . Miscellaneous . | . . . . . Route ------- -11/Scrapyard -10/Materials (discovered 4 exits: *Mat x3 / *Min) -10/Mines (discovered 4 exits: *Mat x2 / *Exi / *Sub) -10/Subcaves (discovered 3 exits: *Mat x2 / *Rec) -8/Recycling History --------- Turn | Location | Event 30 | -11/Scrapyard | Identified exit to Materials 30 | -11/Scrapyard | Discovered exit to Materials (range 15) 427 | -11/Scrapyard | Entered Materials 427 | -10/Materials | Evolved 1 slot: Utility x1 428 | -10/Materials | Build established: Hacker-Mutant 529 | -10/Materials | Identified exit to Mines 529 | -10/Materials | Discovered exit to Mines (range 16) 1048 | -10/Materials | Identified exit to Materials 1048 | -10/Materials | Discovered exit to Materials (range 11) 1265 | -10/Materials | Discovered exit to Materials (range 13) 1392 | -10/Materials | Discovered exit to Materials (range 15) 1925 | -10/Materials | Repaired Lgt. Treads 1952 | -10/Materials | Repaired Lgt. Treads 2121 | -10/Materials | Entered Mines 2305 | -10/Mines | Received a Rocket Launcher from a helpful Derelict 2311 | -10/Mines | A weapon hastily lodged in a ceiling crevice suddenly fell to the ground 2383 | -10/Mines | Deemed a non-threat by the Exiles lab entrance 2384 | -10/Mines | Identified exit to Exiles 2384 | -10/Mines | Discovered exit to Exiles (range 5) 2427 | -10/Mines | Discovered exit to Materials (range 15) 2448 | -10/Mines | Learned 4 Materials zone layouts 2451 | -10/Mines | Assisted by bots powering up and referring to "LRC-V3" 2576 | -10/Mines | Identified exit to Subcaves 2576 | -10/Mines | Discovered exit to Subcaves (range 6) 2599 | -10/Mines | Assembled infested the area 2786 | -10/Mines | Learned Materials security intel 2802 | -10/Mines | Found DCF Scrap (12 items) 3140 | -10/Mines | Discovered exit to Materials (range 10) 3220 | -10/Mines | Entered Subcaves 3356 | -10/Subcaves | A swath of the cavern ceiling suddenly collapsed 3757 | -10/Subcaves | Visited 4L-MR0's lab 3788 | -10/Subcaves | Found Prototype Device 3788 | -10/Subcaves | Identified Sfc. Transmogrifier 3803 | -10/Subcaves | Found Gun Armor 3804 | -10/Subcaves | Attached Gun Armor, gained temporary slots: Weapon x2 4715 | -10/Subcaves | Core integrity fell below 50% 4814 | -10/Subcaves | Identified exit to Materials 4814 | -10/Subcaves | Discovered exit to Materials (range 7) 5406 | -10/Subcaves | Shifting Twisted Machinery released Sub. Shrapnel Launcher 6024 | -10/Subcaves | Disturbed a concealed Subdweller 6080 | -10/Subcaves | Core integrity fell below 20% 6135 | -10/Subcaves | Discovered exit to Materials (range 15) 6160 | -10/Subcaves | Visited Clippyterm 6165 | -10/Subcaves | Learned Factory trap positions 6165 | -10/Subcaves | Learned Factory emergency access door positions 6553 | -10/Subcaves | A swath of the cavern ceiling suddenly collapsed 6662 | -10/Subcaves | Disturbed a concealed Subdweller 8397 | -10/Subcaves | Shifting Twisted Machinery released Sub. Monowheel 8399 | -10/Subcaves | Shifting Twisted Machinery released Sub. Optics 8540 | -10/Subcaves | A Subdweller sparked back to life 8540 | -10/Subcaves | A Subdweller sparked back to life 8540 | -10/Subcaves | A Subdweller sparked back to life 8600 | -10/Subcaves | Found Arachnoskeleton 8667 | -10/Subcaves | Shifting Twisted Machinery released Sub. Monowheel 8680 | -10/Subcaves | Shifting Twisted Machinery released Sub. Power Source 9805 | -10/Subcaves | Identified exit to Recycling 9805 | -10/Subcaves | Discovered exit to Recycling (range 9) 9862 | -10/Subcaves | Entered Recycling 9878 | -8/Recycling | Destroyed by G-47 Trooper with Particle Gun Last Messages --------------- 09805_ EXIT=FOUND: RECYCLING 09808_ Autobeam Turret knocked back. 09810_ Subatomizers dissect the Lgt. Assault Rifle. 09811_ Autobeam Turret destroyed. 09820_ Acquired 18 matter. 09825_ Acquired 11 matter. 09827_ Acquired 3 matter. 09833_ Acquired 19 matter. 09835_ Acquired 1 matter. 09837_ Subatomizers dissect the Lgt. Assault Rifle. 09844_ Acquired 22 matter. 09848_ Subatomizers dissect the Lgt. Assault Rifle. 09851_ Acquired 3 matter. LOCATION=RECYCLING GOAL=ESCAPE 09873_ I-25 Savior springs to life. 09877_ Attempting to rewire T-07 Excavator. 09877_ T-07 Excavator is broken beyond repair. 09878_ Destroyed Wheel. 09878_ G-47 Trooper springs to life. Map ----- +----------------------------------------------------+ | ??????????????????????????????????????????? | | ??????????????????????????????????????????? | | ??????????????????????????????????????????? | | ??????????????????????????????????????????? | | ??????????????????????????????????????????? | | ??????????????????????????????????????????? | | ??????????????????????????????????????????? | | ??????????????????????????????????????????? | | ??????????????????????????????????????????? | | ??????????????????????????????????????????? | | ??????????????????????????????????????????? | | ??????????????????????????????????????????? | | ??????????????????????????????????????????? | | ??????????????????????????????????????????? | | ??????????????????????????????????????????? | | ??????????????????????????????????????????? | | ??????????????????????????????????????????? | | ??????????????????????????????????????????? | | ??????????????????????????????????????????? | | ?????????????????#####????????????????????? | | ?????????????????# #????????????????????? | | ?????????????????# #????????????????????? | | ?????????????????# ######???????????????? | | ?????????????????# # Yu#???????????????? | | ?????????????????# # t#???????????????? | | ?????????????????# + kk@#???????????????? | | ????????????????# # ! #???????????????? | | ????????????????## # g #???????????????? | | ?????????????????# #!]g #???????????????? | | ?????????????????# #= #???????????????? | | ?????????????????# #iY *#???????????????? | | ?????????????????# # d #???????????????? | | ?????????????????# #rt [#???????????????? | | ?????????????????# # ]ia#???????????????? | | ?????????????????# # #???????????????? | | ?????????????????# # s#???????????????? | | ?????????????????# ######???????????????? | | ?????????????????# ?????????????????????? | | ?????????????????# ?????????????????????? | | ?????????????????? ?????????????????????? | | ??????????????????????????????????????????? | | ??????????????????????????????????????????? | | ??????????????????????????????????????????? | | ??????????????????????????????????????????? | | ??????????????????????????????????????????? | | ??????????????????????????????????????????? | | ??????????????????????????????????????????? | | ??????????????????????????????????????????? | | ??????????????????????????????????????????? | | ??????????????????????????????????????????? | +----------------------------------------------------+ Best States ------------- Heat Dissipation 44 Energy Generation 18 Energy Capacity 710 Matter Stores 300 Matter Capacity 300 Sight Range 22 Terrain Scan Range 16 Terrain Scan Density 10 Armor Coverage 150 Resistance: KI 35 Resistance: TH 35 Resistance: EX 85 Resistance: EM 100 Resistance: I 35 Resistance: S 35 Resistance: P 35 Core Shielding 30 Power Shielding 33 Evasion (%) 40 Targeting Accuracy 6 Recoil Reduction 2 Particle Charging 25 Offensive Hacking 20 Item Schematics ----------------- None Robot Schematics ------------------ None Fabricated ------------ Nothing Repaired ---------- Lgt. Treads | 37% | -10/Materials Lgt. Treads | 26% | -10/Materials Studied --------- None Alien Tech Used ----------------- None Achievements -------------- Superinsulated Challenges ------------ None Game ------ Seed CountertargetingSlugSteel Manual? 0 Play Time 01:44:31 Cumulative 478.5 hours Start 2026.07.21 @ 17:24:14 End 2026.07.22 @ 22:04:35 Sessions 7 Manual Loads 0 Difficulty Explorer Special Mode None Game No. 22 Rogue 5 Adventurer 1 Explorer 16 Win Type - Total 1 Types 1/0/0/0/0/0/0/0/0/0 Lore% 42 Gallery% 48 Achievement% 45 Wizard Run 0 Options --------- Layout 0 ASCII 0 Keyboard 0 Movement Mouse Keybinds 0 Fullscreen 2 Font 18/X11 Map View 38x25 Zoom Use 81% Tactical HUD 1 Map Filters NONE Filters NONE Steam 1 RUN: 0c3ece3e-9bb9-4ef6-8daf-349b5fa9ec34